Cogmind - Beta 13 X1 @@@ ROGUE MODE // 2023.06.24 @ 16:54:43 Player: cptwinky Result: Destroyed by GF-BYH(R) with Subdweller Laser Performance ------------- Evolutions (0) 0 Regions Visited (3) 600 Robots Destroyed (29) 145 Value Destroyed (859) 859 Prototype IDs (0) 0 Alien Tech Used (0) 0 Bonus (24) 24 TOTAL SCORE: 1628 Bonus ------- Follower Combat Kills 84 Friendly Fire -60 Cogmind --------- Core Integrity 0/250 Matter 270/300 Energy 250/250 System Corruption 0% Temperature Cool (6) Movement Treading (160) Location -10/Subcaves Parts ------- > --- POWER (1) -------- Ion Engine > --- PROPULSION (2) --- Light Treads Spiked Treads > --- UTILITY (2) ------ Scrap Shield > --- WEAPON (2) ------- Grenade Launcher Makeshift Hammer > --- INVENTORY (5) ---- Battle Cannon Rocket Launcher Subdweller Shrapnel Launcher Enhanced Flamer Scrap Shield Fragment (48) Peak State ------------ > --- POWER ------------ Ion Engine > --- PROPULSION ------- Light Treads Spiked Treads > --- UTILITY ---------- Medium Storage Unit Makeshift Thermal Plating > --- WEAPON ----------- Makeshift Shrapnel Gun Battle Cannon > --- INVENTORY -------- Ion Engine Subdweller Power Source Spiked Treads Disposable Heat Sink Structural Scanner Grenade Launcher Rocket Launcher Improved Datajack Enhanced Flamer Makeshift Hammer [Rating: 17] Favorites ----------- Power Ion Engine Engine Ion Engine Propulsion Light Treads Treads Light Treads Leg Aluminum Leg Utility Medium Storage Unit Device Structural Scanner Storage Medium Storage Unit Protection Scrap Shield Weapon Grenade Launcher Ballistic Gun Assault Rifle Ballistic Cannon Battle Cannon Launcher Grenade Launcher Special Weapon Enhanced Flamer Impact Weapon Makeshift Hammer Special Melee Weapon Improved Datajack Build | -11 -10 -10 -10 ------- Run | Jun Mat Min Sub Slots Evolved . | . . . . Power . | . . . . Propulsion . | . . . . Utility . | . . . . Weapon . | . . . . Parts Attached 38 | . 11 3 24 Power 1 | . . . 1 Engine 1 | . . . 1 Core . | . . . . Reactor . | . . . . Propulsion 5 | . 2 . 3 Treads 5 | . 2 . 3 Leg . | . . . . Wheel . | . . . . Hover . | . . . . Flight . | . . . . Utility 6 | . 2 . 4 Device 2 | . 1 . 1 Storage 1 | . 1 . . Processor . | . . . . Hackware . | . . . . Protection 3 | . . . 3 Artifact . | . . . . Weapon 26 | . 7 3 16 Energy Gun . | . . . . Energy Cannon . | . . . . Ballistic Gun 6 | . 3 1 2 Ballistic Cannon 5 | . . . 5 Launcher 8 | . 4 2 2 Special Weapon 1 | . . . 1 Impact Weapon 5 | . . . 5 Slashing Weapon . | . . . . Piercing Weapon . | . . . . Special Melee Weapon 1 | . . . 1 Unidentified Prototypes . | . . . . Parts Lost 4 | . 1 . 3 Power . | . . . . Propulsion . | . . . . Utility 1 | . . . 1 Weapon 3 | . 1 . 2 Highest Loss Streak 1 | . 1 . 1 To Critical Strikes . | . . . . Average Slot Usage (%) 93 | . 98 100 91 Engine 14 | . 14 14 14 Treads 27 | . 26 28 28 Device 3 | . 12 14 1 Storage 9 | . 14 14 8 Protection 8 | . . . 11 Ballistic Gun 10 | . 25 24 5 Ballistic Cannon 5 | . . . 7 Launcher 5 | . 2 3 6 Special Weapon 2 | . . . 3 Impact Weapon 3 | . . . 4 Naked Turns . | . . . . Heaviest Build 29 | 13 21 20 29 Greatest Support 40 | 20 40 40 40 Greatest Overweight (x) . | . . . . Average Overweight (x) . | . . . . Largest Inventory Capacity 10 | 8 10 10 10 Average Capacity 8 | 8 9 10 7 Most Carried 10 | 6 8 10 10 Average Carried 7 | 6 6 9 7 Final Capacity 10 | 8 10 10 5 Final Carried 10 | 6 8 10 5 Class Distribution -------------------- 97% | Mutant Dominant Class ---------------- Mutant | -10/Materials Mutant | -10/Mines Mutant | -10/Subcaves Resources | -11 -10 -10 -10 ----------- Run | Jun Mat Min Sub Matter Collected 1079 | 200 170 134 575 Remotely . | . . . . Salvage Created 690 | . 417 75 198 Parts 46 | . 28 4 14 Haulers Intercepted 2 | . 2 . . Recyclers Shooed . | . . . . Parts Field Recycled . | . . . . Retrieved Matter . | . . . . Parts Self-Destructed 17 | . . . 17 Prevented . | . . . . Kills | -11 -10 -10 -10 ------- Run | Jun Mat Min Sub Combat Hostiles Destroyed 23 | . 10 2 11 Guns 7 | . 4 1 2 Cannons 2 | . . . 2 AOE 14 | . 6 1 7 Classes Destroyed 8 | . 4 . 4 Worker 2 | . 1 1 . Hauler 2 | . 2 . . Watcher 1 | . 1 . . Swarmer 3 | . . . 3 Grunt 12 | . 10 2 . Cobbler 1 | . . . 1 Subdweller 8 | . . . 8 Zionite 1 | . . . 1 Best Kill Streak 6 | . 6 3 3 Combat Bots Only 4 | . 4 2 3 Max Kills in Single Turn 2 | . 2 2 2 Gunslinging . | . . . . Exploded 2 | . 2 1 2 Melee . | . . . . Uniques/NPCs Destroyed . | . . . . Combat | -11 -10 -10 -10 -------- Run | Jun Mat Min Sub Damage Taken 1329 | . 327 51 951 Core 255 | . 88 29 138 Absorbed by Shields . | . . . . Ignored by Resistances 11 | . . . 11 Core Remaining (%) 100 | 100 . . . Volleys Fired 80 | . 26 3 51 Largest 2 | . 2 2 2 Hottest 87 | . 40 40 87 Shots Fired 113 | . 41 4 68 Gun 46 | . 30 2 14 Cannon 29 | . . . 29 Launcher 28 | . 11 2 15 Special 10 | . . . 10 Kinetic 75 | . 30 2 43 Thermal 10 | . . . 10 Explosive 28 | . 11 2 15 Electromagnetic . | . . . . Robot Hit Streak 16 | . 5 5 16 Robot Miss Streak 2 | . 2 . 2 Penetration Max . | . . . . Secondary Targets 1 | . 1 . . Max Gunslinging Chain 1 | . 1 . . Shots Hit Robots 78 | . 25 2 51 Core Hits 58 | . 27 8 23 Critical Kills . | . . . . Critical Parts Destroyed . | . . . . Critical Strikes 2 | . . . 2 Burn 1 | . . . 1 Destroy 1 | . . . 1 Melee Attacks 24 | . . . 24 Impact 24 | . . . 24 Slashing . | . . . . Piercing . | . . . . Sneak Attacks . | . . . . Combat Hostiles . | . . . . Follow-up Attacks . | . . . . Damage Inflicted 2886 | . 918 211 1757 Guns 452 | . 225 23 204 Cannons 342 | . . . 342 Explosions 1678 | . 690 188 800 Melee 300 | . . . 300 Ramming 3 | . 3 . . Kinetic 794 | . 225 23 546 Thermal 111 | . . . 111 Explosive 1678 | . 690 188 800 Electromagnetic . | . . . . Impact 300 | . . . 300 Slashing . | . . . . Piercing . | . . . . Highest Corruption . | . . . . Average Corruption . | . . . . Corruption Purged . | . . . . Corruption Blocked . | . . . . Overload Shots . | . . . . Overflow Damage 24 | . . . 24 Projectiles 12 | . . . 12 Explosions 1 | . . . 1 Melee 11 | . . . 11 Knockbacks . | . . . . Impact . | . . . . Kinetic . | . . . . Secondary . | . . . . Self-Inflicted Damage 106 | . 90 . 16 Shots 5 | . 4 . 1 Rammed . | . . . . Targets Rammed 1 | . 1 . . Kicked . | . . . . Crushed 1 | . 1 . . Highest Temperature 291 | . 20 4 291 Average Temperature 120 | . 8 4 190 Received Heat Transfer 925 | . 135 9 781 Effects 1 | . . . 1 Energy Bleed 1 | . . . 1 Siege Activations . | . . . . Robots Corrupted . | . . . . Combat Hostiles . | . . . . Parts Fried . | . . . . Impact Corruptions 1 | . . . 1 Robots Melted . | . . . . Combat Hostiles . | . . . . Parts Melted . | . . . . Heat Transferred 960 | . . . 960 Parts Sabotaged . | . . . . Parts Stolen . | . . . . Parts Stripped . | . . . . Power Chain Reactions . | . . . . Missiles Intercepted . | . . . . Alert | -11 -10 -10 -10 ------- Run | Jun Mat Min Sub Peak Influence 271 | . 271 231 . Initial 73 | . . 73 . Average 119 | . 104 138 . Maximum Alert Level 1 | . 1 1 . Low Security (%) 86 | 100 88 85 . Level 1 13 | . 11 14 . Level 2 . | . . . . Level 3 . | . . . . Level 4 . | . . . . Level 5 . | . . . . High Security . | . . . . Max Security . | . . . . Squads Dispatched 4 | . 3 1 . Investigation 4 | . 3 1 . Extermination . | . . . . Reinforcement . | . . . . Assault . | . . . . Garrison . | . . . . Intercept . | . . . . Searches Triggered . | . . . . Construction Impeded . | . . . . Haulers Reinforced . | . . . . Active Scanning Responses . | . . . . Cargo Convoy Interrupts . | . . . . Stealth | -11 -10 -10 -10 --------- Run | Jun Mat Min Sub Distress Signals 1 | . 1 . . Communications Jammed . | . . . . Distress Signals . | . . . . Times Spotted 33 | . 11 5 17 Peak Tracking Total 4 | . 3 3 4 Tactical Retreats 1 | . . . 1 Traps | -11 -10 -10 -10 ------- Run | Jun Mat Min Sub Traps Triggered 1 | . 1 . . Indirectly . | . . . . Trap Hack Attempts 56 | . . . 56 Triggered . | . . . . Disarmed . | . . . . Reprogrammed 5 | . . . 5 Reused . | . . . . Traps Extracted . | . . . . Installed 1 | . . . 1 Triggered . | . . . . Most Traps Carried 1 | . . . 1 Machines | -11 -10 -10 -10 ---------- Run | Jun Mat Min Sub Machines Disabled 4 | . 3 1 . Max in Single Turn 1 | . 1 . . Machines Repaired . | . . . . Machines Sabotaged . | . . . . Overloaded Fab Kills . | . . . . Hacking | -11 -10 -10 -10 --------- Run | Jun Mat Min Sub Machines Accessed 7 | . 4 2 1 Terminals 5 | . 4 1 . Fabricators . | . . . . Repair Stations . | . . . . Recycling Units . | . . . . Scanalyzers . | . . . . Garrison Access . | . . . . Total Hacks 16 | . 10 2 4 Successful 8 | . 3 1 4 Failed 8 | . 7 1 . Catastrophic 3 | . 2 1 . Database Lockouts . | . . . . Manual 10 | . 9 1 . Terminals 11 | . 10 1 . Fabricators . | . . . . Repair Stations . | . . . . Recycling Units . | . . . . Scanalyzers . | . . . . Garrison Access . | . . . . Terminal Hacks 8 | . 3 1 4 Record 4 | . . . 4 Robot Analysis 3 | . 3 . . Open Door 1 | . . 1 . Fabricator Hacks . | . . . . Repair Station Hacks . | . . . . Recycling Unit Hacks . | . . . . Scanalyzer . | . . . . Garrison Access Hacks . | . . . . Unauthorized Hacks . | . . . . Terminals . | . . . . Fabricators . | . . . . Repair Stations . | . . . . Recycling Units . | . . . . Scanalyzers . | . . . . Garrison Access . | . . . . Data Cores Recovered . | . . . . Used . | . . . . Hacking Detections 4 | . 3 1 . Full Trace Events 2 | . 2 . . Feedback Events . | . . . . Feedback Blocked . | . . . . Robot Schematics Acquired . | . . . . Robots Built . | . . . . Authchips . | . . . . Time . | . . . . Total Robot Build Rating . | . . . . Part Schematics Acquired . | . . . . Parts Built . | . . . . Authchips . | . . . . Time . | . . . . Total Part Build Rating . | . . . . Parts Repaired . | . . . . Time . | . . . . Parts Recycled . | . . . . Recycled Matter . | . . . . Retrieved Matter . | . . . . Retrieved Components . | . . . . Parts Scanalyzed . | . . . . Part Schematics Acquired . | . . . . Parts Damaged . | . . . . Bothacking | -11 -10 -10 -10 ------------ Run | Jun Mat Min Sub Used RIF Installer . | . . . . Robots Hacked . | . . . . Non-combat . | . . . . Combat . | . . . . Robot Hacks Applied . | . . . . Relay Couplers Released . | . . . . Fabnet Peak Effective % . | . . . . Robots Rewired . | . . . . Allies Hacked . | . . . . Hacks Repelled . | . . . . Allies | -11 -10 -10 -10 -------- Run | Jun Mat Min Sub Total Allies 3 | . . 3 . Largest Group 3 | . . 3 3 Highest-Rated Group 40 | . . 40 40 Highest-Rated Ally 16 | . . 16 16 Total Orders . | . . . . Ally Attacks 34 | . . 8 26 Total Damage 325 | . . 106 219 Kills 5 | . . 3 2 Allies Corrupted . | . . . . Allies Melted 1 | . . . 1 Intel | -11 -10 -10 -10 ------- Run | Jun Mat Min Sub Robot Analysis Total 3 | . 3 . . Derelict Logs Recovered 3 | . . 1 2 Drone Launches . | . . . . Drone Recoveries . | . . . . Exploration | -11 -10 -10 -10 ------------- Run | Jun Mat Min Sub Turns Passed 4172 | 3 537 436 3196 Spaces Moved 2048 | 3 276 256 1513 Core . | . . . . Treads 2027 | . 258 256 1513 Legs 21 | 3 18 . . Wheels . | . . . . Hover . | . . . . Flight . | . . . . Fastest Speed 120 | 120 120 160 160 Average Speed 159 | 120 157 160 160 Slowest Speed 160 | 120 160 160 160 Overloaded Moves . | . . . . Propulsion Burnouts . | . . . . Robots Hopped . | . . . . Cave-ins Triggered . | . . . . Exploration Rate (%) 49 | 2 55 58 84 Regions Visited 3 Branch Regions 2 Pre-discovered Areas 2 | . . . 2 Known Exits Taken . | . . . . Unknown Exits Taken 3 | 1 1 1 . Scrap Searched 4 | . . 1 3 Spaces Dug 31 | . 8 7 16 Terrain Destroyed 128 | . 47 7 74 Melee 3 | . . . 3 Projectile 11 | . . . 11 AOE 114 | . 47 7 60 Terrain Rammed . | . . . . Walls Destroyed . | . . . . Machines Disabled . | . . . . Actions | -11 -10 -10 -10 --------- Run | Jun Mat Min Sub Total 2806 | 2 337 280 2187 Wait 514 | . 14 11 489 Move 2045 | 2 275 255 1513 Hop . | . . . . Pick Up 22 | . 6 5 11 Fast Attach 7 | . 1 . 6 Attach 3 | . 1 . 2 Detach 1 | . . . 1 Swap 28 | . 9 3 16 Drop 22 | . 4 3 15 Fire 80 | . 26 3 51 Melee 24 | . . . 24 Ram . | . . . . Kick . | . . . . Crush 1 | . 1 . . Escape Stasis . | . . . . Rewire . | . . . . Trap 57 | . . . 57 Miscellaneous 2 | . . . 2 Route ------- -11/Junkyard -10/Materials (discovered 2 exits: *Min x2) -10/Mines -10/Subcaves (discovered 1 exit: [*Mat]) History --------- Turn | Location | Event 1 | -11/Junkyard | Discovered new exit (range 1) 4 | -11/Junkyard | Entered Materials 99 | -10/Materials | Discovered new exit (range 5) 328 | -10/Materials | Build established: Mutant 398 | -10/Materials | Discovered new exit (range 13) 541 | -10/Materials | Entered Mines 585 | -10/Mines | Learned Materials non-interactive machine intel 626 | -10/Mines | A weapon hastily lodged in a ceiling crevice suddenly fell to the ground 681 | -10/Mines | Assisted by bots powering up and referring to "LRC-V3" 705 | -10/Mines | Met a Derelict shopkeep closing up shop 749 | -10/Mines | Received a Rocket Launcher from a helpful Derelict 755 | -10/Mines | Discovered new exit (range 12) 977 | -10/Mines | Entered Subcaves 977 | -10/Subcaves | Accompanied by 3 allies 1022 | -10/Subcaves | Learned location of Zion (-6) 1022 | -10/Subcaves | Met a Zionite searching for "candidates" 1055 | -10/Subcaves | Shifting Twisted Machinery released Battle Cannon 1164 | -10/Subcaves | Shifting Twisted Machinery released Sub. Laser 1379 | -10/Subcaves | Learned location of 1 exit from Materials 1411 | -10/Subcaves | Shifting Twisted Machinery released Piercing Trap 2076 | -10/Subcaves | Ambushed by Subdweller buried in earth 2081 | -10/Subcaves | Core integrity fell below 50% 2333 | -10/Subcaves | Ambushed by Subdweller buried in earth 2565 | -10/Subcaves | Visited Clippyterm 2570 | -10/Subcaves | Learned location of Section 7 (-3) 2678 | -10/Subcaves | Ambushed by Subdwellers from Twisted Machinery 3507 | -10/Subcaves | A swath of the cavern ceiling suddenly collapsed 3695 | -10/Subcaves | A swath of the cavern ceiling suddenly collapsed 3816 | -10/Subcaves | Core integrity fell below 20% 3842 | -10/Subcaves | Shifting Twisted Machinery released Sub. Shrapnel Launcher 3880 | -10/Subcaves | Discovered new exit (range 10) 3897 | -10/Subcaves | Learned 8 Materials zone layouts 4173 | -10/Subcaves | Destroyed by GF-BYH(R) with Subdweller Laser Last Messages --------------- 03229_ Destroyed Cobbler Unit. 03277_ Destroyed Wheel. 03282_ 15-HQC(O) cries out in pain. 03282_ 15-HQC(O) destroyed. A swath of the cavern ceiling suddenly collapses. 03812_ SV-MBD(R): "OHNO!" 03819_ SV-MBD(R) destroyed. 03825_ The unstable cave ceiling collapses. Sub. Shrapnel Launcher falls loose from the Twisted Machinery. 03864_ Acquired 23 matter. 03872_ The unstable cave ceiling collapses. 03880_ EXIT=FOUND 03897_ Acquired derelict log, extracted data. Data stored: Materials zone layouts (x8). 04046_ Acquired 41 matter. 04058_ TF-VG5(R): "MADSUB!" 04059_ TF-VG5(R) destroyed. 04064_ Acquired 10 matter. 04073_ Dropped Sub. Power Source. 04083_ Acquired Scrap Shield Fragment. Map ----- +----------------------------------------------------+ | ?????????????????????????????????????????????????? | | ?????????????????????????????????????????????????? | | ?????????????????????????????????????????????????? | | ?????????????????????????????????????????????????? | | ?????????????????????????????????????????????????? | | ?????????????????????????????????????????????????? | | ?????????????????????????????????????????????????? | | ?????????????????????????????????????????????????? | | ?????????????????????????????????????????????????? | | ?????????????????????????????????????????????????? | | ?????????????????????????????????????????????????? | | ?????????????????????????????????????????????????? | | ?????????????????????????????????????????????????? | | ???????????????????????###???????????????????????? | | ??????????????????????## ???????????????????????? | | ?????????????????????? ???????????????????????? | | ??????????????????????? ##?????????????????????? | | ??????????????????????? ####?"""??????????????? | | ???????????????????????? ##""" ?????????????? | | ???????????????????????? " ?????????????? | | ????????????????????????# """?????????????? | | ????????????????????????# R """"?????????????? | | ????????????????????????# R ""??????????????? | | ????????????????????????# """??????????????? | | ???????????????????????## "" #????????????? | | ???????????????????????# @ ##???? #????????????? | | ???????????????????????## #?????????????????????? | | ???????????????????????## ##????????????????????? | | ??????????????????????## ##???????????????????? | | ?????????????????????##" ##?????????????????## | | ????????????????????##"" #?????????????????#" | | ??????????????#######" #### #?????????????????#^ | | ??????????????# #"#"# " #??? %#????????????????#[ | | ?????????????##"""" "" #??? #????????????????# | | #???????????##""" "" ##??? #????????????????#" | | #????????###"" """ #??? ##????????????????## | | ??????###"" ##"" ""#??? #??????????????????? | | ??????#"" #### " "##????#??????????????????? | | #??????#"" #### " ## #?????????????????????? | | #??????#" ## ## " "" ?????????????????????? | | ##????##""=#### "" " ???????????????????? | | #????#"=%#### " ## ????????????????????? | | #????##*|### " ####???????????????????????? | | ####???# ## = ## #??????????????????????????? | | ### ###?# # % # #??????????????????????????? | | %* ### ## # #??????????????????????????? | | ##%%###% # #??????????????????????????? | | % ## # % ##??????????????????????????? | | #? ##???????????????????????????? | | % ####?%#????????????????????????????? | +----------------------------------------------------+ Best States ------------- Heat Dissipation 25 Energy Generation 10 Energy Capacity 250 Matter Stores 300 Matter Capacity 300 Sight Range 16 Terrain Scan Density 10 Armor Coverage 800 Resistance: TH 10 Evasion (%) 45 Recoil Reduction 2 Item Schematics ----------------- None Robot Schematics ------------------ None Fabricated ------------ Nothing Alien Tech Used ----------------- None Achievements -------------- None Challenges ------------ None Game ------ Seed AnalysisNovaStripper Manual? 0 Play Time 00:17:11 Cumulative 1300.4 hours Start 2023.06.24 @ 16:37:47 End 2023.06.24 @ 16:54:43 Sessions 1 Manual Loads 0 Difficulty Rogue Special Mode None Game No. 944 Rogue 940 Adventurer 4 Explorer 0 Win Type - Total 149 Types 111/10/10/6/2/1/1/5/3 Lore% 94 Gallery% 97 Achievement% 98 Wizard Run 0 Options --------- ASCII 0 Keyboard 1 Movement Vi Keybinds 0 Fullscreen 0 Font 20/X11 Map View 76x50 Tactical HUD 1 Map Filters NONE Filters NONE Steam 1 RUN: 2e669243-ddd8-4717-947e-af3ad8744308